fUSD/lending_fUSD_20260410
["ID","MTS","AMOUNT","RATE_DAILY","PERIOD"]
[420186352,1775763032746,-181.08010149,0.00015118,2]
[420186353,1775763032756,-181.08010149,0.00015118,2]
[420186354,1775763032765,-370.33271532,0.00015118,2]
[420186358,1775763040714,-400.68477113,0.00015118,2]
[420186359,1775763040724,-107.54320887,0.00015118,2]
[420186360,1775763040826,-161.69920009,0.00015118,2]
[420186361,1775763040837,-500.0,0.00015119,2]
[420186362,1775763040847,-435.12573434,0.00015122,2]
[420186363,1775763040860,-429.63502624,0.00015122,2]
[420186364,1775763040872,-1098.28427162,0.00015122,2]
[420186365,1775763040881,-168.0,0.00015134,2]
[420186366,1775763040892,-754.45621894,0.00015157,2]
[420186519,1775763043034,-1633.13178106,0.00015157,2]
[420186521,1775763043045,-177.28971405,0.00015157,2]
[420186523,1775763043054,-168.0,0.00015166,2]
[420186525,1775763043064,-160.0,0.00015169,2]
[420186527,1775763043073,-311.287339,0.00015169,2]
[420186530,1775763043083,-462.574679,0.00015169,2]
[420186532,1775763043093,-916.0,0.00015178,2]
[420186534,1775763043103,-500.0,0.00015178,2]
[420186536,1775763043112,-168.0,0.00015184,2]
[420186538,1775763043123,-466.630127,0.0001519,7]
[420186540,1775763043133,-607.0457332,0.000152,2]
[420186542,1775763043145,-2900.0,0.000152,5]
[420186544,1775763043156,-168.0,0.00015235,2]
[420186546,1775763043166,-168.0,0.00015237,2]
[420186548,1775763043187,-160.0,0.00015288,7]
[420186550,1775763043211,-441.782437,0.00015288,7]
[420186552,1775763043223,-723.564875,0.00015288,7]
[420186587,1775763043651,-160.0,0.00015288,7]
[420186588,1775763043661,-892.295845,0.00015288,7]
[420186590,1775763043671,-1365.43752391,0.00015288,7]
[420186596,1775763043768,-259.15416709,0.00015288,7]
[420186597,1775763043778,-160.0,0.00015288,2]
[420186598,1775763043787,-417.001388,0.00015288,2]
[420186600,1775763043797,-674.002776,0.00015288,2]
[420186602,1775763043806,-505.0,0.00015293,3]
[420186604,1775763043816,-168.0,0.000153,2]
[420186606,1775763043828,-3900.0,0.000153,5]
[420186608,1775763043860,-168.0,0.00015324,2]
[420186610,1775763043869,-167.0,0.00015367,2]
[420186612,1775763043878,-5000.0,0.00015378,2]
[420186614,1775763043887,-500.0,0.00015393,2]
[420186616,1775763043898,-4900.0,0.000154,5]
[420186618,1775763043908,-168.0,0.00015417,2]
[420186620,1775763043917,-2602.69,0.00015471,2]
[420186622,1775763043926,-1429.47130289,0.00015471,2]
[420186810,1775763045852,-1823.18869711,0.00015471,2]
[420186812,1775763045861,-531.05,0.00015471,2]
[420186814,1775763045871,-664.0,0.00015472,2]
[420186816,1775763045881,-500.0,0.00015475,2]
[420186818,1775763045890,-200.0,0.00015475,2]
[420186820,1775763045899,-284.17288493,0.00015477,2]
[420186822,1775763045909,-168.0,0.00015492,2]
[420186824,1775763045920,-1000.0,0.000155,2]
[420186826,1775763045930,-1000.0,0.000155,2]
[420186828,1775763045948,-1346.7613,0.000155,2]
[420186831,1775763045960,-362.731792,0.000155,2]
[420186833,1775763045969,-261.88023406,0.000155,2]
[420186834,1775763045979,-1000.0,0.000155,2]
[420186836,1775763045988,-313.0,0.000155,2]
[420186838,1775763045997,-900.0,0.000155,5]
[420186840,1775763046007,-1963.0450322,0.00015511,2]
[420186843,1775763046017,-250.0,0.00015534,2]
[420186845,1775763046027,-3524.0,0.00015566,2]
[420186847,1775763046037,-362.73179197,0.00015567,2]
[420186849,1775763046046,-500.0,0.00015573,2]
[420186851,1775763046056,-500.0,0.00015573,2]
[420186853,1775763046065,-500.0,0.00015573,2]
[420186855,1775763046074,-500.0,0.00015573,2]
[420186857,1775763046083,-500.0,0.00015573,2]
[420186859,1775763046093,-369.26191,0.00015573,2]
[420186861,1775763046102,-500.0,0.00015573,2]
[420186863,1775763046112,-500.0,0.00015573,2]
[420186865,1775763046121,-500.0,0.00015573,2]
[420186867,1775763046130,-231.58259095,0.00015573,2]
[420186869,1775763046139,-500.0,0.00015573,2]
[420186871,1775763046150,-500.0,0.00015573,2]
[420186873,1775763046160,-500.0,0.00015573,2]
[420186875,1775763046169,-500.0,0.00015573,2]
[420186877,1775763046179,-500.0,0.00015573,2]
[420186879,1775763046189,-500.0,0.00015573,2]
[420186881,1775763046198,-165.0975096,0.00015573,2]
[420186883,1775763046207,-500.0,0.00015573,2]
[420186885,1775763046217,-220.96705391,0.00015573,2]
[420186887,1775763046247,-500.0,0.00015573,2]
[420186889,1775763046257,-500.08533647,0.00015573,2]
[420186891,1775763046265,-500.0,0.00015573,2]
[420186893,1775763046274,-167.72157466,0.00015573,2]
[420186895,1775763046282,-500.0,0.00015573,2]
[420186897,1775763046291,-500.0,0.00015573,2]
[420186899,1775763046300,-500.0,0.00015573,2]
[420186901,1775763046308,-500.0,0.00015573,2]
[420186903,1775763046318,-500.0,0.00015573,2]
[420186905,1775763046327,-160.0246852,0.00015573,2]
[420186907,1775763046336,-4932.1331621,0.00015589,2]
[420186909,1775763046346,-222.32206339,0.0001559,2]
[420186911,1775763046355,-150.0,0.000156,5]
[420186913,1775763046364,-329.0,0.000156,5]
[420186915,1775763046374,-28919.00331495,0.000156,2]
[420186917,1775763046383,-276257.60932638,0.000156,2]
[420186922,1775763046419,-149817.49572032,0.000156,2]
[420187976,1775764029445,-177.28971405,0.00012149,2]
[420187977,1775764029482,-2236.697,0.00012149,2]
[420187978,1775764029515,-300.0,0.00012295,2]
[420187979,1775764029538,-3056.06201483,0.00012296,2]
[420187980,1775764029560,-196.30450322,0.00012296,2]
[420187981,1775764029583,-698.13416205,0.00012296,2]
[420187982,1775764029604,-500.0,0.00012373,2]
[420187983,1775764029625,-500.0,0.00012373,2]
[420187984,1775764029647,-150.0,0.00012394,2]
[420187985,1775764029669,-500.0,0.00012395,2]
[420187986,1775764029692,-198.92101945,0.00012395,2]
[420187987,1775764029714,-500.0,0.00012395,2]
[420187988,1775764029739,-392.75069284,0.00012395,2]
[420187989,1775764029760,-409.19543521,0.00012395,2]
[420187990,1775764029806,-500.0,0.00012395,2]
[420187991,1775764029829,-186.97447771,0.00012395,2]
[420187992,1775764029850,-288.64029142,0.00012395,2]
[420187993,1775764029876,-500.0,0.00012395,2]
[420187994,1775764029901,-500.0,0.00012395,2]
[420187995,1775764029926,-500.0,0.00012395,2]
[420187996,1775764029951,-500.0,0.00012395,2]
[420187997,1775764029976,-500.0,0.00012395,2]
[420187998,1775764030001,-500.0,0.00012395,2]
[420187999,1775764030027,-500.0,0.00012395,2]
[420188000,1775764030054,-500.0,0.00012395,2]
[420188001,1775764030105,-500.0,0.00012395,2]
[420188002,1775764030132,-500.0,0.00012395,2]
[420188003,1775764030198,-500.0,0.00012395,2]
[420188004,1775764030224,-500.0,0.00012395,2]
[420188005,1775764030249,-500.0,0.00012395,2]
[420188006,1775764030275,-500.0,0.00012395,2]
[420188007,1775764030304,-533.92941277,0.00012395,2]
[420188008,1775764030343,-500.0,0.00012395,2]
[420188009,1775764030369,-500.0,0.00012395,2]
[420188010,1775764030394,-500.0,0.00012395,2]
[420188011,1775764030419,-500.0,0.00012395,2]
[420188012,1775764030446,-500.0,0.00012395,2]
[420188013,1775764030473,-500.0,0.00012395,2]
[420188014,1775764030500,-500.0,0.00012395,2]
[420188015,1775764030527,-500.0,0.00012395,2]
[420188016,1775764030562,-500.0,0.00012395,2]
[420188017,1775764030598,-500.0,0.00012395,2]
[420188018,1775764030624,-500.0,0.00012395,2]
[420188019,1775764030650,-500.0,0.00012395,2]
[420188020,1775764030695,-500.0,0.00012395,2]
[420188021,1775764030753,-500.0,0.00012395,2]
[420188022,1775764030780,-500.0,0.00012395,2]
[420188023,1775764030805,-500.0,0.00012395,2]
[420188024,1775764030827,-500.0,0.00012395,2]
[420188025,1775764030848,-321.54740042,0.00012395,2]
[420188026,1775764030869,-500.0,0.00012395,2]
[420188027,1775764030890,-500.0,0.00012395,2]
[420188028,1775764030912,-500.0,0.00012395,2]
[420188029,1775764030938,-500.0,0.00012395,2]
[420188030,1775764030963,-500.0,0.00012395,2]
[420188031,1775764030987,-500.0,0.00012395,2]
[420188032,1775764031012,-500.0,0.00012395,2]
[420188033,1775764031037,-500.0,0.00012395,2]
[420188034,1775764031063,-500.0,0.00012395,2]
[420188035,1775764031088,-500.0,0.00012395,2]
[420188036,1775764031122,-500.0,0.00012395,2]
[420188037,1775764031159,-500.0,0.00012395,2]
[420188038,1775764031182,-60364.45523892,0.00012396,2]
[420188039,1775764161943,-150.0,0.00012395,2]
[420188040,1775764161978,-300.0,0.00012395,2]
[420188041,1775764161999,-500.0,0.00012395,2]
[420188042,1775764162021,-486.43680465,0.00012395,2]
[420188043,1775764162065,-52908.65273535,0.00012396,2]
[420188044,1775764163132,-32571.37146723,0.00012396,2]
[420188045,1775764167142,-77152.22382,0.00012396,2]
[420188046,1775764170286,-39340.75054,0.00012396,2]
[420188047,1775764232141,-300.0,0.00012395,2]
[420188048,1775764232151,-184.03385373,0.000124,2]
[420188049,1775764232173,-423.01187947,0.000124,2]
[420188050,1775764232199,-91.61541419,0.00012696,2]
[420188051,1775764232212,-104.68908903,0.00012696,2]
[420188052,1775764232223,-160.0,0.00012758,2]
[420188053,1775764232233,-3056.0620148,0.00013097,2]
[420188054,1775764232245,-180.24889617,0.00013097,2]
[420188055,1775764232294,-16.05560705,0.00013097,2]
[420188056,1775764232305,-505.0,0.000131,2]
[420188057,1775764232316,-31.33174065,0.00013449,2]
[420188161,1775764239678,-274.53052043,0.00013449,2]
[420188162,1775764239699,-408.54905294,0.00013449,2]
[420188163,1775764240392,-2196.00964649,0.00013449,2]
[420188175,1775764243122,-329.57903949,0.00013449,2]
[420188176,1775764243132,-196.30450322,0.00013497,2]
[420188177,1775764243141,-1500.0,0.00013671,2]
[420188178,1775764243150,-500.0,0.00013698,2]
[420188179,1775764243160,-500.0,0.00013698,2]
[420188180,1775764243169,-500.0,0.00013698,2]
[420188181,1775764243178,-150.0,0.000138,2]
[420188182,1775764243187,-3056.0620148,0.00013898,2]
[420188183,1775764243197,-196.30450322,0.00013898,2]
[420188184,1775764243206,-200.0,0.00013931,2]
[420188185,1775764243216,-271.44,0.00013963,2]
[420188186,1775764243225,-500.0,0.00014219,2]
[420188187,1775764243234,-505.0,0.00014234,2]
[420188188,1775764243244,-200.0,0.00014287,2]
[420188189,1775764243255,-3056.0620148,0.00014298,2]
[420188190,1775764243265,-196.30450322,0.00014298,2]
[420188191,1775764243274,-950.1708427,0.00014307,2]
[420188192,1775764243311,-649.8291573,0.00014307,2]
[420188193,1775764243320,-1000.0,0.00014525,2]
[420188194,1775764243330,-601.3376128,0.0001457,2]
[420188195,1775764243340,-1191.11104075,0.0001457,2]
[420188196,1775764243374,-578.20924308,0.0001457,2]
[420188197,1775764243384,-200.0,0.0001457,2]
[420188198,1775764243393,-174.61919141,0.0001457,2]
[420188199,1775764243402,-174.61919141,0.0001457,2]
[420188200,1775764243411,-3056.0620148,0.00014699,2]
[420188201,1775764243420,-196.30450322,0.00014699,2]
[420188202,1775764243430,-210.67815236,0.0001482,2]
[420188203,1775764243442,-175.3276,0.00015,2]
[420188204,1775764243478,-800.0,0.00015,5]
[420188206,1775764243487,-1894.0,0.00015,2]
[420188207,1775764243496,-2168.44,0.00015057,2]
[420188208,1775764243506,-420.45,0.00015057,2]
[420188209,1775764243515,-500.0,0.00015091,2]
[420188210,1775764243527,-3056.0620148,0.00015099,2]
[420188211,1775764243540,-196.30450322,0.00015099,2]
[420188212,1775764243562,-1600.0,0.000151,5]
[420188213,1775764243572,-1235.18214925,0.00015118,2]
[420188214,1775764243581,-200.0,0.00015118,2]
[420188215,1775764243590,-181.08010149,0.00015118,2]
[420188216,1775764243600,-181.08010149,0.00015118,2]
[420188217,1775764243609,-500.0,0.00015123,2]
[420188218,1775764243618,-2500.0,0.000152,5]
[420188219,1775764243627,-3300.0,0.000153,5]
[420188220,1775764243636,-591.92341797,0.0001532,2]
[420188221,1775764243645,-167.0,0.00015367,2]
[420188222,1775764243655,-167.0,0.00015367,2]
[420188223,1775764243664,-167.0,0.00015367,2]
[420188224,1775764243673,-167.0,0.00015367,2]
[420188225,1775764243682,-167.0,0.00015367,2]
[420188226,1775764243692,-185.12335472,0.00015367,2]
[420188227,1775764243701,-505.0,0.00015368,3]
[420188228,1775764243710,-4200.0,0.000154,5]
[420188229,1775764243719,-168.0,0.00015426,2]
[420188230,1775764243728,-160.0,0.00015451,7]
[420188231,1775764243737,-1023.07769,0.00015451,7]
[420188232,1775764243747,-1886.15538,0.00015451,7]
[420188233,1775764243756,-461.682092,0.00015451,7]
[420188234,1775764243766,-160.0,0.00015451,2]
[420188235,1775764243775,-355.286246,0.00015451,2]
[420188236,1775764243784,-550.572492,0.00015451,2]
[420188237,1775764243794,-500.0,0.00015475,2]
[420188238,1775764243818,-200.0,0.00015475,2]
[420188239,1775764243829,-164.873857,0.00015492,7]
[420188240,1775764243838,-5000.0,0.00015497,2]
[420188241,1775764243848,-3056.0620148,0.000155,2]
[420188242,1775764243857,-196.30450322,0.000155,2]
[420188243,1775764243866,-1000.0,0.000155,2]
[420188244,1775764243875,-259.09413713,0.000155,2]
[420188245,1775764243885,-249.27234867,0.000155,2]
[420188246,1775764243894,-1000.0,0.000155,2]
[420188247,1775764243903,-313.0,0.000155,2]
[420188248,1775764243912,-800.0,0.000155,5]
[420188249,1775764243921,-306.0,0.000155,2]
[420188250,1775764243943,-916.0,0.00015508,2]
[420188251,1775764243959,-250.0,0.00015534,2]
[420188252,1775764243968,-259.09413712,0.00015567,2]
[420188253,1775764243977,-500.0,0.00015573,2]
[420188254,1775764243985,-369.26191,0.00015573,2]
[420188255,1775764243995,-500.0,0.00015573,2]
[420188256,1775764244005,-500.0,0.00015573,2]
[420188257,1775764244016,-500.0,0.00015573,2]
[420188258,1775764244046,-150.30679996,0.00015573,2]
[420188259,1775764244055,-500.0,0.00015573,2]
[420188260,1775764244065,-161.88405077,0.0001559,2]
[420188261,1775764244074,-33904.7202996,0.00015597,2]
[420188262,1775764244083,-849.6719467,0.00015597,2]
[420188263,1775764244092,-1346.0641133,0.00015597,2]
[420188264,1775764244101,-155.0,0.00015599,2]
[420188265,1775764244111,-500.0,0.00015599,2]
[420188266,1775764244121,-500.0,0.00015599,2]
[420188267,1775764244130,-274.92548498,0.00015599,2]
[420188268,1775764244140,-500.0,0.00015599,2]
[420188269,1775764244174,-500.0,0.00015599,2]
[420188270,1775764244183,-360.3,0.00015599,2]
[420188271,1775764244192,-259.0,0.000156,5]
[420188272,1775764244202,-220519.24441207,0.000156,2]
[420188273,1775764244211,-211975.90103481,0.000156,2]
[420188274,1775764244221,-24382.52630344,0.000156,2]
[420188275,1775764244250,-502.22559388,0.000156,2]
[420188276,1775764244641,-181885.82280627,0.000156,2]
[420188277,1775764245922,-160.0,0.00015564,7]
[420188278,1775764245931,-167.983979,0.00015564,7]
[420188279,1775764245941,-931.5460343,0.000156,2]
[420188280,1775764245952,-142330.10025108,0.000156,2]
[420188281,1775764248327,-151.0,0.00015084,5]
[420188282,1775764248336,-160.0,0.00015564,7]
[420188283,1775764248345,-175.967959,0.00015564,7]
[420188284,1775764248356,-1083.245257,0.00015564,7]
[420188285,1775764248365,-2006.490514,0.00015564,7]
[420188286,1775764248374,-1435.20399145,0.000156,2]
[420188288,1775764248394,-107504.98695477,0.000156,2]
[420188303,1775765150247,-598.35399195,0.000109,5]
[420188306,1775765232132,-2903.0,0.000115,5]
[420188307,1775765232157,-250.0,0.00013,2]
[420188308,1775765232181,-505.0,0.000131,2]
[420188309,1775765232206,-335.03356611,0.0001313,2]
[420188310,1775765232227,-2000.0,0.00013585,2]
[420188311,1775765232282,-2300.0,0.00013634,2]
[420188312,1775765232304,-3000.0,0.00013634,2]
[420188313,1775765232328,-500.0,0.00013698,2]
[420188314,1775765232358,-150.0,0.00013762,2]
[420188315,1775765232379,-2007.25,0.00013881,2]
[420188316,1775765232405,-159.89,0.00013971,2]
[420188317,1775765232444,-150.0,0.00014,2]
[420188318,1775765232465,-160.0,0.00014024,2]
[420188319,1775765232486,-205.75305955,0.00014174,2]
[420188320,1775765232506,-1528.0310074,0.00014174,2]
[420188321,1775765232526,-938.93025602,0.00014174,2]
[420188322,1775765232568,-500.0,0.00014206,2]
[420188323,1775765232593,-500.0,0.00014206,2]
[420188324,1775765232632,-500.0,0.00014206,2]
[420188325,1775765232673,-553.39294128,0.00014206,2]
[420188326,1775765232700,-500.0,0.00014206,2]
[420188327,1775765232770,-150.0,0.00014206,2]
[420188328,1775765232791,-500.0,0.00014206,2]
[420188329,1775765232824,-191765.13118713,0.00014207,2]
[420188330,1775765253373,162.18,7.078e-05,2]
[420188331,1775765348122,-162.18,9.437e-05,2]
[420188332,1775765348148,-162.18,0.00011797,2]
[420188333,1775765348218,-600.0,0.00012539,2]
[420188334,1775765348243,-213.13384603,0.00012539,2]
[420188336,1775765431971,-312.7,0.000131,2]
[420188337,1775765432027,-192.3,0.000131,2]
[420188338,1775765432036,-505.0,0.000131,2]
[420188339,1775765432045,-505.0,0.000131,2]
[420188340,1775765432055,-160.0,0.00013629,2]
[420188341,1775765432064,-1200.0,0.00013633,2]
[420188342,1775765432074,-2200.0,0.00013634,2]
[420188343,1775765432083,-150.0,0.00013699,2]
[420188344,1775765432094,-192.8,0.00013699,2]
[420188345,1775765432109,-150.0,0.00013973,2]
[420188346,1775765432135,-300.0,0.00014085,2]
[420188347,1775765432145,-300.0,0.00014085,2]
[420188348,1775765432154,-1671.0,0.00014086,2]
[420188349,1775765432164,-581.5577,0.00014107,2]
[420188350,1775765432173,-834.0,0.00014114,2]
[420188351,1775765432183,-162.18,0.00014156,2]
[420188352,1775765432192,-500.0,0.00014206,2]
[420188353,1775765432207,-500.0,0.00014206,2]
[420188354,1775765432251,-300.86613662,0.00014206,2]
[420188355,1775765432260,-500.0,0.00014206,2]
[420188356,1775765432269,-7740.99826521,0.00014207,2]
[420188357,1775765432281,-2622.89306983,0.00014207,2]
[420188358,1775765432293,-648.73496734,0.00014207,2]
[420188359,1775765432908,-59546.8115889,0.00014207,2]
[420188360,1775765432920,-2445.95087844,0.00014207,2]
[420188397,1775765438325,-163.88,0.00013699,2]
[420188398,1775765438335,-136734.99864315,0.00014207,2]
[420188399,1775765438357,-505.0,0.00014295,3]
[420188400,1775765438376,-150.0,0.000143,2]
[420188401,1775765438386,-454.0,0.00014388,2]
[420188402,1775765438395,-1134.15624338,0.0001439,2]
[420188403,1775765438404,-2500.0,0.0001441,2]
[420188404,1775765438414,-2500.0,0.0001441,2]
[420188405,1775765438426,-2500.0,0.0001441,2]
[420188406,1775765438447,-2500.0,0.0001441,2]
[420188407,1775765438457,-2500.0,0.0001441,2]
[420188408,1775765438466,-300.0,0.0001441,2]
[420188409,1775765438477,-300.0,0.0001441,2]
[420188410,1775765438487,-300.0,0.0001441,2]
[420188411,1775765438497,-300.0,0.0001441,2]
[420188412,1775765438507,-300.0,0.0001441,2]
[420188413,1775765438570,-500.0,0.0001441,2]
[420188414,1775765438579,-500.0,0.0001441,2]
[420188415,1775765438590,-500.0,0.0001441,2]
[420188416,1775765438604,-500.0,0.0001441,2]
[420188417,1775765438614,-500.0,0.0001441,2]
[420188418,1775765438624,-200.0,0.0001441,2]
[420188419,1775765438640,-500.0,0.00014419,2]
[420188420,1775765438650,-283.71032681,0.0001442,2]
[420188421,1775765438667,-500.0,0.0001442,2]
[420188422,1775765438678,-500.0,0.0001442,2]
[420188423,1775765438688,-500.0,0.0001442,2]
[420188424,1775765438725,-500.0,0.0001442,2]
[420188425,1775765438735,-500.0,0.0001442,2]
[420188426,1775765438748,-500.0,0.0001442,2]
[420188427,1775765438758,-500.0,0.0001442,2]
[420188428,1775765438768,-396.94315186,0.0001442,2]
[420188429,1775765438783,-500.0,0.0001442,2]
[420188430,1775765438793,-500.0,0.0001442,2]
[420188431,1775765438802,-500.0,0.0001442,2]
[420188432,1775765438812,-500.0,0.0001442,2]
[420188433,1775765438823,-1131.0,0.00014483,2]
[420188434,1775765438833,-2040.0,0.00014512,2]
[420188435,1775765438842,-159.89,0.00014548,2]
[420188436,1775765438882,-588.0,0.00014548,2]
[420188437,1775765438892,-500.96,0.00014655,2]
[420188438,1775765438901,-200.0,0.00014681,2]
[420188439,1775765438911,-578.20924308,0.00014681,2]
[420188440,1775765438920,-11564.18486161,0.00014681,2]
[420188441,1775765438931,-1191.11104075,0.00014681,2]
[420188442,1775765438941,-601.3376128,0.00014681,2]
[420188443,1775765438956,-174.61919141,0.00014681,2]
[420188444,1775765438967,-174.61919141,0.00014681,2]
[420188445,1775765438977,-400.68477113,0.00014681,2]
[420188446,1775765438986,-269.24240896,0.00014681,2]
[420188447,1775765438995,-200.0,0.000149,5]
[420188448,1775765439005,-846.0,0.00014996,2]
[420188449,1775765439014,-300.0,0.00015,2]
[420188450,1775765439024,-299.999999,0.00015,2]
[420188451,1775765439033,-2200.0,0.00015004,2]
[420188452,1775765439043,-400.0,0.000151,5]
[420188453,1775765439052,-159.89,0.00015124,2]
[420188454,1775765439061,-5000.0,0.000152,2]
[420188455,1775765439071,-700.0,0.000152,5]
[420188456,1775765439080,-2366.0,0.00015226,2]
[420188457,1775765439090,-200.0,0.00015229,2]
[420188458,1775765439101,-1863.05692706,0.00015229,2]
[420188459,1775765439111,-1152.51378462,0.00015229,2]
[420188460,1775765439121,-181.08010149,0.00015229,2]
[420188461,1775765439130,-181.08010149,0.00015229,2]
[420188462,1775765439139,-1815.0,0.00015236,2]
[420188463,1775765439148,-151.25,0.00015236,2]
[420188464,1775765439160,-500.0,0.00015273,2]
[420188465,1775765439190,-500.0,0.00015273,2]
[420188466,1775765439199,-500.0,0.00015273,2]
[420188467,1775765439208,-2000.0,0.00015283,2]
[420188468,1775765439217,-500.0,0.00015299,2]
[420188469,1775765439228,-500.0,0.00015299,2]
[420188470,1775765439237,-500.0,0.00015299,2]
[420188471,1775765439246,-500.0,0.00015299,2]
[420188472,1775765439264,-393.87,0.00015299,2]
[420188473,1775765439289,-285.93,0.00015299,2]
[420188474,1775765439299,-900.0,0.000153,5]
[420188475,1775765439308,-1940.249,0.00015317,2]
[420188476,1775765439317,-368.73705833,0.0001532,2]
[420188477,1775765439326,-500.96,0.00015387,2]
[420188478,1775765439338,-190.529661,0.00015395,7]
[420188479,1775765439361,-160.0,0.00015395,7]
[420188480,1775765439396,-477.872577,0.00015395,7]
[420188481,1775765439406,-795.745155,0.00015395,7]
[420188482,1775765439415,-340.278406,0.00015395,2]
[420188483,1775765439425,-353.741434,0.00015395,7]
[420188484,1775765439442,-265.324898,0.00015395,2]
[420188485,1775765439514,-1100.0,0.000154,5]
[420188486,1775765439524,-161.99385538,0.00015425,2]
[420188487,1775765439534,-420.0,0.0001543,2]
[420188488,1775765439543,-6023.0,0.00015475,2]
[420188489,1775765439553,-2471.0,0.00015475,2]
[420188490,1775765439562,-200.0,0.00015475,2]
[420188491,1775765439572,-505.0,0.00015489,4]
[420188492,1775765439582,-1000.0,0.000155,2]
[420188493,1775765439591,-1000.0,0.000155,2]
[420188494,1775765439600,-166.18156578,0.000155,2]
[420188495,1775765439610,-185.0672408,0.000155,2]
[420188496,1775765439620,-175.3357,0.000155,2]
[420188497,1775765439632,-200.0,0.000155,5]
[420188498,1775765439642,-500.0,0.00015506,2]
[420188499,1775765439651,-500.0,0.00015506,2]
[420188500,1775765439661,-625.0831803,0.00015506,2]
[420188501,1775765439674,-500.0,0.00015506,2]
[420188502,1775765439683,-190.50576325,0.00015506,2]
[420188503,1775765439692,-159.64615364,0.00015506,2]
[420188504,1775765439702,-603.94090081,0.00015506,2]
[420188505,1775765439715,-500.0,0.00015506,2]
[420188506,1775765439730,-163.49323045,0.00015506,2]
[420188507,1775765439740,-4000.0,0.00015507,2]
[420188508,1775765439750,-250.0,0.00015507,2]
[420188509,1775765439771,-168.0,0.00015512,2]
[420188510,1775765439782,-185.0672408,0.00015567,2]
[420188511,1775765439792,-500.0,0.00015573,2]
[420188512,1775765439801,-500.0,0.00015573,2]
[420188513,1775765439810,-500.0,0.00015573,2]
[420188514,1775765439821,-500.0,0.00015573,2]
[420188515,1775765439834,-500.0,0.00015573,2]
[420188516,1775765439869,-500.0,0.00015573,2]
[420188517,1775765439880,-500.0,0.00015573,2]
[420188518,1775765439889,-500.0,0.00015573,2]
[420188519,1775765439899,-501.06711075,0.00015573,2]
[420188520,1775765439908,-500.0,0.00015573,2]
[420188521,1775765439921,-500.0,0.00015573,2]
[420188522,1775765439941,-500.0,0.00015573,2]
[420188523,1775765439966,-503.84430142,0.00015573,2]
[420188524,1775765439975,-169.028779,0.00015577,7]
[420188525,1775765439984,-462.180051,0.00015577,2]
[420188526,1775765439994,-2048.451871,0.00015582,7]
[420188527,1775765440010,-182.03005498,0.0001559,2]
[420188528,1775765440023,-170.9702496,0.00015598,2]
[420188529,1775765440032,-7269.2725736,0.00015598,2]
[420188530,1775765440042,-294325.73827658,0.000156,2]
[420188531,1775765440051,-474.07406288,0.000156,2]
[420188532,1775765440061,-214895.86932645,0.000156,2]
[420188533,1775765440073,-435.9,0.000156,2]
[420188534,1775765440093,-167.0,0.000156,2]
[420188535,1775765440105,-151.0,0.000156,2]
[420188536,1775765440114,-151.0,0.000156,2]
[420188537,1775765440124,-151.0,0.000156,2]
[420188538,1775765440134,-151.0,0.000156,2]
[420188539,1775765440143,-177.263537,0.000156,2]
[420188540,1775765440152,-151.0,0.000156,2]
[420188541,1775765440171,-151.0,0.000156,2]
[420188542,1775765440223,-171.115855,0.000156,2]